Workbook

Sheet ポジションサイズの計算
B1: EUR/CAD 4時間足 2013年1月～１２月
B4: エントリー前 | G4: 決済後 | L4: 損益pips | O4: 損切り幅の計算
B5: A | C5: B | D5: C | E5: D | F5: E | G5: F | H5: G | I5: H | J5: I | K5: J | L5: K | M5: L | N5: M | O5: 1 | P5: 2 | Q5: 3 | S5: エントリー | U5: 決済
A6: No | B6: 資金 | C6: ロスカット | D6: 損切り幅 | E6: レート | F6: ﾎﾟｼﾞｼｮﾝｻｲｽﾞ | G6: 獲得pips | H6: ロット | J6: レート | K6: 損益 | L6: エントリー | M6: 決済 | N6: 損益 | O6: STOP | P6: エントリー | Q6: 損切り幅 | R6: 売買 | S6: 日付 | T6: 時間 | U6: 日付 | V6: 時間
A8: 1 | B8: 500000 | C8: 0.03 | D8: 49 | E8: 96 | F8: =SUM(B8*C8/D8/E8) -> 3.18877551 | G8: 256 | H8: 3.1 | I8: 100 | J8: 0.96 | K8: =SUM(G8*H8*I8*J8) -> 76185.6 | L8: 1.3852 | M8: 1.4108 | N8: =SUM(M8-L8) -> 0.0256 | O8: 1.3803 | P8: 1.3852 | Q8: =SUM(P8-O8)*10000 -> 49 | R8: 買 | S8: 2015-08-20 | T8: 12:00:00 | U8: 2015-08-23 | V8: 12:00:00
A9: 2 | B9: =SUM(B8+K8) -> 576185.6 | C9: 0.03 | D9: 33 | E9: 96 | F9: =SUM(B9*C9/D9/E9) -> 5.45630303 | G9: 368 | H9: 5.4 | I9: 100 | J9: 0.96 | K9: =SUM(G9*H9*I9*J9) -> 190771.2 | L9: 1.403 | M9: 1.3662 | N9: =SUM(L9-M9) -> 0.0368 | O9: 1.4063 | P9: 1.403 | Q9: =SUM(O9-P9)*10000 -> 33 | R9: 売 | S9: 2015-08-28 | T9: 12:00:00 | U9: 2015-09-06 | V9: 12:00:00
A10: 3 | B10: 766956.8 | C10: 0.03 | D10: 23 | E10: 96 | F10: 10.4206087 | G10: 185 | H10: 10.4 | I10: 100 | J10: 0.96 | K10: 184704 | L10: 1.3772 | M10: 1.3957 | N10: =SUM(M10-L10) -> 0.0185 | O10: 1.3749 | P10: 1.3772 | Q10: =SUM(P10-O10)*10000 -> 23 | R10: 買 | S10: 2015-09-18 | T10: 20:00:00 | U10: 2015-09-23 | V10: 00:00:00
A11: 4 | B11: 951660.8 | C11: 0.03 | D11: 48 | E11: 96 | F11: 6.195708333 | G11: 86 | H11: 6.1 | I11: 100 | J11: 0.96 | K11: 50361.6 | L11: 1.3988 | M11: 1.4074 | N11: =SUM(M11-L11) -> 0.0086 | O11: 1.394 | P11: 1.3988 | Q11: =SUM(P11-O11)*10000 -> 48 | R11: 買 | S11: 2015-10-01 | T11: 16:00:00 | U11: 2015-10-03 | V11: 16:00:00
A12: 5 | B12: 1002022.4 | C12: 0.03 | D12: 27 | E12: 96 | F12: 11.59748148 | G12: 354 | H12: 11.5 | I12: 333 | J12: 0.96 | K12: 1301417.28 | L12: 1.4085 | M12: 1.4439 | N12: =SUM(M12-L12) -> 0.0354 | O12: 1.4058 | P12: 1.4085 | Q12: =SUM(P12-O12)*10000 -> 27 | R12: 買 | S12: 2015-10-21 | T12: 20:00:00 | U12: 2015-10-25 | V12: 20:00:00
A13: 6 | B13: 2303439.68 | C13: 0.03 | D13: 57 | E13: 96 | F13: 12.62850702 | G13: 292 | H13: 12.6 | I13: 100 | J13: 0.96 | K13: 353203.2 | L13: 1.4362 | M13: 1.407 | N13: =SUM(L13-M13) -> 0.0292 | O13: 1.4419 | P13: 1.4362 | Q13: 57 | R13: 売 | S13: 2015-10-29 | T13: 20:00:00 | U13: 2015-11-04 | V13: 16:00:00
A14: 7 | B14: 2656642.88 | C14: 0.03 | D14: 44 | E14: 96 | F14: 18.86820227 | G14: 340 | H14: 18.8 | I14: 100 | J14: 0.96 | K14: 613632 | L14: 1.427 | M14: 1.461 | N14: =SUM(M14-L14) -> 0.034 | O14: 1.4226 | P14: 1.427 | Q14: =SUM(P14-O14)*10000 -> 44 | R14: 買 | S14: 2015-11-25 | T14: 20:00:00 | U14: 2015-12-09 | V14: 16:00:00

Sheet 気づき
A3: 2013年は、エントリー回数が７回と少なかった。
A5: レンジが多かったのか、MAの１０と２０の絡まりが綺麗ではなかった。

Sheet 画像
